fUST/lending_fUST_20260520
["ID","MTS","AMOUNT","RATE_DAILY","PERIOD"]
[422712002,1779291040000,-151.0,8.219e-05,2]
[422711996,1779291040000,-1978.58,8.219e-05,2]
[422711997,1779291040000,-2439.96,8.219e-05,2]
[422711999,1779291040000,-151.0,8.219e-05,2]
[422711998,1779291040000,-1964.38,8.219e-05,2]
[422711995,1779291040000,-500.0,8.219e-05,2]
[422712004,1779291040000,-151.0,8.219e-05,2]
[422712059,1779291041000,-723.11,8.219e-05,2]
[422712056,1779291041000,-6996.02,8.219e-05,2]
[422712053,1779291041000,-500.0,8.219e-05,2]
[422712055,1779291041000,-813.74,8.219e-05,2]
[422712054,1779291041000,-1616.19,8.219e-05,2]
[422712052,1779291041000,-1337.54,8.219e-05,2]
[422712048,1779291041000,-500.0,8.219e-05,2]
[422712051,1779291041000,-32040.43,8.219e-05,2]
[422712046,1779291041000,-500.0,8.219e-05,2]
[422712049,1779291041000,-2845.0,8.219e-05,2]
[422712045,1779291041000,-500.0,8.219e-05,2]
[422712044,1779291041000,-1434.51,8.219e-05,2]
[422712043,1779291041000,-500.0,8.219e-05,2]
[422712042,1779291041000,-2671.49,8.219e-05,2]
[422712041,1779291041000,-500.0,8.219e-05,2]
[422712057,1779291041000,-1023.85,8.219e-05,2]
[422712050,1779291041000,-500.0,8.219e-05,2]
[422712047,1779291041000,-924.09,8.219e-05,2]
[422712058,1779291041000,-1545.41,8.219e-05,2]
[422712062,1779291041000,-1401.78,8.219e-05,2]
[422712060,1779291041000,-700.6,8.219e-05,2]
[422712077,1779291041000,-681.48428,8.219e-05,2]
[422712075,1779291041000,-1518.57416789,8.219e-05,2]
[422712073,1779291041000,-500.0,8.219e-05,2]
[422712072,1779291041000,-500.0,8.219e-05,2]
[422712074,1779291041000,-476.64583211,8.219e-05,2]
[422712071,1779291041000,-4834.93,8.219e-05,2]
[422712070,1779291041000,-1336.93,8.219e-05,2]
[422712076,1779291041000,-652.46050045,8.219e-05,2]
[422712068,1779291041000,-538.96,8.219e-05,2]
[422712067,1779291041000,-5129.99,8.219e-05,2]
[422712063,1779291041000,-1766.39,8.219e-05,2]
[422712065,1779291041000,-1011.97,8.219e-05,2]
[422712064,1779291041000,-681.81,8.219e-05,2]
[422712066,1779291041000,-500.0,8.219e-05,2]
[422712061,1779291041000,-6386.49,8.219e-05,2]
[422712069,1779291041000,-500.0,8.219e-05,2]
[422712123,1779291046000,-768.02521955,8.219e-05,2]
[422712124,1779291046000,-1413.7955073,8.219e-05,2]
[422712126,1779291046000,-500.0,8.219e-05,2]
[422712125,1779291046000,-285.4044927,8.219e-05,2]
[422712128,1779291046000,-516.36763077,8.219e-05,2]
[422712127,1779291046000,-500.0,8.219e-05,2]
[422712135,1779291047000,-152.11058991,8.219e-05,2]
[422712130,1779291047000,-500.0,8.219e-05,2]
[422712131,1779291047000,-500.0,8.219e-05,2]
[422712129,1779291047000,-1343.84236923,8.219e-05,2]
[422712132,1779291047000,-500.0,8.219e-05,2]
[422712134,1779291047000,-500.0,8.219e-05,2]
[422712133,1779291047000,-2774.65,8.219e-05,2]
[422712143,1779291047000,-354.5272352,8.36e-05,2]
[422712136,1779291047000,-177.2636176,8.219e-05,2]
[422712139,1779291047000,-500.0,8.219e-05,2]
[422712145,1779291047000,-301.59096792,8.36e-05,2]
[422712141,1779291047000,-304.22117981,8.36e-05,2]
[422712147,1779291047000,-202.68658842,8.36e-05,4]
[422712140,1779291047000,-196.88627361,8.219e-05,4]
[422712138,1779291047000,-150.79548396,8.219e-05,2]
[422712178,1779291623000,176.197615,3.64e-05,2]
[422712180,1779291978000,559.62,0.00017808,120]
[422712182,1779292027000,-300.0,7.096e-05,2]
[422712183,1779292027000,-336.19704,7.096e-05,2]
[422712195,1779292148000,-300.0,7.238e-05,2]
[422712188,1779292148000,-300.0,7.096e-05,2]
[422712189,1779292148000,-484.80391283,7.096e-05,2]
[422712190,1779292148000,-14420.7018534,7.097e-05,2]
[422712187,1779292148000,-863.80296,7.096e-05,2]
[422712192,1779292148000,-300.0,7.238e-05,2]
[422712193,1779292148000,-300.0,7.238e-05,2]
[422712194,1779292148000,-300.0,7.238e-05,2]
[422712197,1779292148000,-300.0,7.238e-05,2]
[422712191,1779292148000,-302.2747456,7.127e-05,2]
[422712201,1779292148000,-300.0,7.238e-05,2]
[422712196,1779292148000,-300.0,7.238e-05,2]
[422712206,1779292148000,-115.59741819,7.238e-05,2]
[422712202,1779292148000,-300.0,7.238e-05,2]
[422712204,1779292148000,-300.0,7.238e-05,2]
[422712203,1779292148000,-300.0,7.238e-05,2]
[422712199,1779292148000,-300.0,7.238e-05,2]
[422712205,1779292148000,-300.0,7.238e-05,2]
[422712198,1779292148000,-300.0,7.238e-05,2]
[422712200,1779292148000,-300.0,7.238e-05,2]
[422712208,1779292161000,-581.61441819,7.382e-05,2]
[422712207,1779292161000,-184.40258181,7.238e-05,2]
[422712224,1779292232000,-500.0,8.118e-05,2]
[422712221,1779292232000,-154.17453222,8.118e-05,2]
[422712226,1779292232000,-500.0,8.118e-05,2]
[422712227,1779292232000,-500.0,8.118e-05,2]
[422712219,1779292232000,-177.0,8.117e-05,2]
[422712215,1779292232000,-766.43500783,8.025e-05,2]
[422712216,1779292232000,-77.63073973,8.025e-05,2]
[422712212,1779292232000,-165.565679,7.766e-05,2]
[422712214,1779292232000,-161.70661154,8.025e-05,2]
[422712213,1779292232000,-816.0,8e-05,2]
[422712228,1779292232000,-335.43958643,8.118e-05,2]
[422712211,1779292232000,-18.38558181,7.382e-05,2]
[422712217,1779292232000,-82.36926027,8.025e-05,2]
[422712229,1779292232000,-543.11802766,8.118e-05,2]
[422712218,1779292232000,-300.0,8.117e-05,2]
[422712222,1779292232000,-500.0,8.118e-05,2]
[422712220,1779292232000,-500.0,8.118e-05,2]
[422712235,1779292232000,-500.0,8.118e-05,2]
[422712233,1779292232000,-172.11811099,8.118e-05,2]
[422712234,1779292232000,-500.0,8.118e-05,2]
[422712238,1779292232000,-500.0,8.118e-05,2]
[422712239,1779292232000,-11096.68630036,8.119e-05,2]
[422712232,1779292232000,-500.0,8.118e-05,2]
[422712240,1779292232000,-621.07827234,8.119e-05,2]
[422712231,1779292232000,-500.0,8.118e-05,2]
[422712236,1779292232000,-500.0,8.118e-05,2]
[422712230,1779292232000,-500.0,8.118e-05,2]
[422712223,1779292232000,-500.0,8.118e-05,2]
[422712225,1779292232000,-500.0,8.118e-05,2]
[422712237,1779292232000,-500.0,8.118e-05,2]
[422712308,1779292238000,-500.0,8.218e-05,2]
[422712311,1779292238000,-500.0,8.218e-05,2]
[422712305,1779292238000,-500.0,8.218e-05,2]
[422712306,1779292238000,-500.0,8.218e-05,2]
[422712310,1779292238000,-500.0,8.218e-05,2]
[422712309,1779292238000,-500.0,8.218e-05,2]
[422712302,1779292238000,-500.0,8.218e-05,2]
[422712296,1779292238000,-178.1950342,8.119e-05,2]
[422712300,1779292238000,-299.60261434,8.2e-05,2]
[422712298,1779292238000,-720.0,8.12e-05,2]
[422712301,1779292238000,-5527.31186144,8.2e-05,2]
[422712295,1779292238000,-35633.82650271,8.119e-05,2]
[422712299,1779292238000,-443.0,8.188e-05,2]
[422712297,1779292238000,-379.26607334,8.119e-05,2]
[422712307,1779292238000,-500.0,8.218e-05,2]
[422712303,1779292238000,-500.0,8.218e-05,2]
[422712313,1779292238000,-500.0,8.218e-05,2]
[422712327,1779292238000,-500.0,8.218e-05,2]
[422712312,1779292238000,-500.0,8.218e-05,2]
[422712330,1779292238000,-500.0,8.218e-05,2]
[422712329,1779292238000,-300.0,8.218e-05,2]
[422712321,1779292238000,-500.0,8.218e-05,2]
[422712322,1779292238000,-500.0,8.218e-05,2]
[422712304,1779292238000,-500.0,8.218e-05,2]
[422712324,1779292238000,-500.0,8.218e-05,2]
[422712317,1779292238000,-500.0,8.218e-05,2]
[422712318,1779292238000,-500.0,8.218e-05,2]
[422712323,1779292238000,-500.0,8.218e-05,2]
[422712319,1779292238000,-500.0,8.218e-05,2]
[422712316,1779292238000,-500.0,8.218e-05,2]
[422712314,1779292238000,-500.0,8.218e-05,2]
[422712326,1779292238000,-645.23421424,8.218e-05,2]
[422712325,1779292238000,-500.0,8.218e-05,2]
[422712315,1779292238000,-500.0,8.218e-05,2]
[422712320,1779292238000,-500.0,8.218e-05,2]
[422712328,1779292238000,-500.0,8.218e-05,2]
[422712369,1779292239000,-630.85,8.219e-05,2]
[422712373,1779292239000,-500.0,8.219e-05,2]
[422712376,1779292239000,-500.0,8.219e-05,2]
[422712372,1779292239000,-500.0,8.219e-05,2]
[422712371,1779292239000,-500.0,8.219e-05,2]
[422712358,1779292239000,-500.0,8.219e-05,2]
[422712368,1779292239000,-500.0,8.219e-05,2]
[422712367,1779292239000,-500.0,8.219e-05,2]
[422712365,1779292239000,-500.0,8.219e-05,2]
[422712359,1779292239000,-500.0,8.219e-05,2]
[422712370,1779292239000,-500.0,8.219e-05,2]
[422712366,1779292239000,-500.0,8.219e-05,2]
[422712374,1779292239000,-830.73,8.219e-05,2]
[422712385,1779292239000,-500.0,8.219e-05,2]
[422712377,1779292239000,-500.0,8.219e-05,2]
[422712378,1779292239000,-500.0,8.219e-05,2]
[422712380,1779292239000,-500.0,8.219e-05,2]
[422712388,1779292239000,-151.0,8.219e-05,2]
[422712379,1779292239000,-500.0,8.219e-05,2]
[422712382,1779292239000,-500.0,8.219e-05,2]
[422712387,1779292239000,-500.0,8.219e-05,2]
[422712381,1779292239000,-577.59,8.219e-05,2]
[422712383,1779292239000,-500.0,8.219e-05,2]
[422712384,1779292239000,-500.0,8.219e-05,2]
[422712386,1779292239000,-500.0,8.219e-05,2]
[422712390,1779292239000,-151.0,8.219e-05,2]
[422712389,1779292239000,-151.0,8.219e-05,2]
[422712392,1779292239000,-151.0,8.219e-05,2]
[422712375,1779292239000,-500.0,8.219e-05,2]
[422712357,1779292239000,-158.66594916,8.219e-05,2]
[422712354,1779292239000,-1082.85,8.219e-05,2]
[422712362,1779292239000,-500.0,8.219e-05,2]
[422712397,1779292239000,-771.32,8.219e-05,2]
[422712334,1779292239000,-500.0,8.219e-05,2]
[422712338,1779292239000,-500.0,8.219e-05,2]
[422712331,1779292239000,-1277.37,8.219e-05,2]
[422712336,1779292239000,-548.72,8.219e-05,2]
[422712332,1779292239000,-500.0,8.219e-05,2]
[422712333,1779292239000,-500.0,8.219e-05,2]
[422712335,1779292239000,-471.02212033,8.219e-05,2]
[422712339,1779292239000,-500.0,8.219e-05,2]
[422712337,1779292239000,-652.7,8.219e-05,2]
[422712341,1779292239000,-500.0,8.219e-05,2]
[422712351,1779292239000,-500.0,8.219e-05,2]
[422712340,1779292239000,-712.92,8.219e-05,2]
[422712342,1779292239000,-500.0,8.219e-05,2]
[422712344,1779292239000,-500.0,8.219e-05,2]
[422712343,1779292239000,-500.0,8.219e-05,2]
[422712347,1779292239000,-629.39715757,8.219e-05,2]
[422712348,1779292239000,-500.0,8.219e-05,2]
[422712345,1779292239000,-500.0,8.219e-05,2]
[422712346,1779292239000,-500.0,8.219e-05,2]
[422712349,1779292239000,-500.0,8.219e-05,2]
[422712350,1779292239000,-500.0,8.219e-05,2]
[422712353,1779292239000,-500.0,8.219e-05,2]
[422712352,1779292239000,-500.0,8.219e-05,2]
[422712361,1779292239000,-1142.64,8.219e-05,2]
[422712360,1779292239000,-535.14,8.219e-05,2]
[422712363,1779292239000,-1225.22,8.219e-05,2]
[422712355,1779292239000,-500.0,8.219e-05,2]
[422712356,1779292239000,-500.0,8.219e-05,2]
[422712364,1779292239000,-500.0,8.219e-05,2]
[422712400,1779292239000,-1292.52,8.219e-05,2]
[422712427,1779292239000,-500.0,8.219e-05,2]
[422712391,1779292239000,-151.0,8.219e-05,2]
[422712432,1779292239000,-1521.31,8.219e-05,2]
[422712430,1779292239000,-500.0,8.219e-05,2]
[422712431,1779292239000,-500.0,8.219e-05,2]
[422712436,1779292239000,-500.0,8.219e-05,2]
[422712434,1779292239000,-500.0,8.219e-05,2]
[422712433,1779292239000,-500.0,8.219e-05,2]
[422712435,1779292239000,-500.0,8.219e-05,2]
[422712441,1779292239000,-500.0,8.219e-05,2]
[422712438,1779292239000,-430.34602661,8.219e-05,2]
[422712440,1779292239000,-500.0,8.219e-05,2]
[422712437,1779292239000,-550.84397339,8.219e-05,2]
[422712439,1779292239000,-500.0,8.219e-05,2]
[422712451,1779292239000,-500.0,8.219e-05,2]
[422712425,1779292239000,-937.02,8.219e-05,2]
[422712453,1779292239000,-500.0,8.219e-05,2]
[422712454,1779292239000,-500.0,8.219e-05,2]
[422712455,1779292239000,-500.0,8.219e-05,2]
[422712442,1779292239000,-500.0,8.219e-05,2]
[422712446,1779292239000,-151.0,8.219e-05,2]
[422712445,1779292239000,-653.4,8.219e-05,2]
[422712444,1779292239000,-519.7,8.219e-05,2]
[422712450,1779292239000,-1141.12,8.219e-05,2]
[422712449,1779292239000,-500.0,8.219e-05,2]
[422712447,1779292239000,-151.0,8.219e-05,2]
[422712448,1779292239000,-151.0,8.219e-05,2]
[422712457,1779292239000,-500.0,8.219e-05,2]
[422712456,1779292239000,-500.0,8.219e-05,2]
[422712399,1779292239000,-428.72407933,8.219e-05,2]
[422712452,1779292239000,-489.11320715,8.219e-05,2]
[422712423,1779292239000,-650.82,8.219e-05,2]
[422712443,1779292239000,-814.1,8.219e-05,2]
[422712421,1779292239000,-500.0,8.219e-05,2]
[422712424,1779292239000,-500.0,8.219e-05,2]
[422712402,1779292239000,-500.0,8.219e-05,2]
[422712401,1779292239000,-500.0,8.219e-05,2]
[422712403,1779292239000,-500.0,8.219e-05,2]
[422712394,1779292239000,-500.0,8.219e-05,2]
[422712393,1779292239000,-151.0,8.219e-05,2]
[422712396,1779292239000,-500.0,8.219e-05,2]
[422712395,1779292239000,-196.943319,8.219e-05,2]
[422712406,1779292239000,-500.0,8.219e-05,2]
[422712405,1779292239000,-500.0,8.219e-05,2]
[422712415,1779292239000,-500.0,8.219e-05,2]
[422712404,1779292239000,-500.0,8.219e-05,2]
[422712416,1779292239000,-500.0,8.219e-05,2]
[422712407,1779292239000,-561.82,8.219e-05,2]
[422712408,1779292239000,-500.0,8.219e-05,2]
[422712398,1779292239000,-840.15,8.219e-05,2]
[422712426,1779292239000,-500.0,8.219e-05,2]
[422712422,1779292239000,-984.37,8.219e-05,2]
[422712419,1779292239000,-500.0,8.219e-05,2]
[422712420,1779292239000,-500.0,8.219e-05,2]
[422712412,1779292239000,-500.0,8.219e-05,2]
[422712429,1779292239000,-552.4,8.219e-05,2]
[422712428,1779292239000,-2818.54,8.219e-05,2]
[422712417,1779292239000,-742.53,8.219e-05,2]
[422712411,1779292239000,-752.99,8.219e-05,2]
[422712410,1779292239000,-2698.96,8.219e-05,2]
[422712409,1779292239000,-856.77,8.219e-05,2]
[422712413,1779292239000,-500.0,8.219e-05,2]
[422712414,1779292239000,-500.0,8.219e-05,2]
[422712418,1779292239000,-1492.39,8.219e-05,2]
[422712512,1779292240000,-151.0,8.219e-05,2]
[422712500,1779292240000,-151.0,8.219e-05,2]
[422712508,1779292240000,-151.0,8.219e-05,2]
[422712501,1779292240000,-151.0,8.219e-05,2]
[422712499,1779292240000,-151.0,8.219e-05,2]
[422712491,1779292240000,-500.0,8.219e-05,2]
[422712492,1779292240000,-726.41,8.219e-05,2]
[422712490,1779292240000,-2603.12,8.219e-05,2]
[422712495,1779292240000,-500.0,8.219e-05,2]
[422712496,1779292240000,-151.0,8.219e-05,2]
[422712493,1779292240000,-151.0,8.219e-05,2]
[422712503,1779292240000,-151.0,8.219e-05,2]
[422712494,1779292240000,-151.0,8.219e-05,2]
[422712510,1779292240000,-151.0,8.219e-05,2]
[422712513,1779292240000,-151.0,8.219e-05,2]
[422712509,1779292240000,-500.0,8.219e-05,2]
[422712502,1779292240000,-151.0,8.219e-05,2]
[422712506,1779292240000,-151.0,8.219e-05,2]
[422712505,1779292240000,-151.0,8.219e-05,2]
[422712504,1779292240000,-248.79699,8.219e-05,2]
[422712507,1779292240000,-151.0,8.219e-05,2]
[422712516,1779292240000,-151.0,8.219e-05,2]
[422712515,1779292240000,-151.0,8.219e-05,2]
[422712517,1779292240000,-151.0,8.219e-05,2]
[422712514,1779292240000,-2109.07,8.219e-05,2]
[422712519,1779292240000,-251.336638,8.219e-05,2]
[422712521,1779292240000,-500.0,8.219e-05,2]
[422712518,1779292240000,-151.0,8.219e-05,2]
[422712511,1779292240000,-500.0,8.219e-05,2]
[422712498,1779292240000,-151.0,8.219e-05,2]
[422712466,1779292240000,-2244.93,8.219e-05,2]
[422712486,1779292240000,-500.0,8.219e-05,2]
[422712467,1779292240000,-696.26,8.219e-05,2]
[422712468,1779292240000,-151.0,8.219e-05,2]
[422712469,1779292240000,-500.0,8.219e-05,2]
[422712462,1779292240000,-3469.7014,8.219e-05,2]
[422712460,1779292240000,-500.0,8.219e-05,2]
[422712458,1779292240000,-736.01,8.219e-05,2]
[422712461,1779292240000,-500.0,8.219e-05,2]
[422712463,1779292240000,-588.33,8.219e-05,2]
[422712459,1779292240000,-500.0,8.219e-05,2]
[422712464,1779292240000,-3099.76,8.219e-05,2]
[422712465,1779292240000,-1996.96,8.219e-05,2]
[422712483,1779292240000,-151.0,8.219e-05,2]
[422712482,1779292240000,-151.0,8.219e-05,2]
[422712488,1779292240000,-2580.6,8.219e-05,2]
[422712484,1779292240000,-500.0,8.219e-05,2]
[422712471,1779292240000,-151.0,8.219e-05,2]
[422712474,1779292240000,-151.0,8.219e-05,2]
[422712479,1779292240000,-151.0,8.219e-05,2]
[422712475,1779292240000,-221.89534996,8.219e-05,2]
[422712476,1779292240000,-500.0,8.219e-05,2]
[422712473,1779292240000,-151.0,8.219e-05,2]
[422712478,1779292240000,-151.0,8.219e-05,2]
[422712481,1779292240000,-500.0,8.219e-05,2]
[422712480,1779292240000,-151.0,8.219e-05,2]
[422712477,1779292240000,-500.0,8.219e-05,2]
[422712487,1779292240000,-500.0,8.219e-05,2]
[422712489,1779292240000,-553.0,8.219e-05,2]
[422712497,1779292240000,-151.0,8.219e-05,2]
[422712485,1779292240000,-573.37854492,8.219e-05,2]
[422712522,1779292240000,-500.0,8.219e-05,2]
[422712520,1779292240000,-500.0,8.219e-05,2]
[422712523,1779292240000,-1824.42,8.219e-05,2]
[422712558,1779292240000,-2560.18,8.219e-05,2]
[422712560,1779292240000,-500.0,8.219e-05,2]
[422712561,1779292240000,-1374.74,8.219e-05,2]
[422712559,1779292240000,-500.0,8.219e-05,2]
[422712563,1779292240000,-30794.73,8.219e-05,2]
[422712562,1779292240000,-500.0,8.219e-05,2]
[422712566,1779292240000,-1281.81,8.219e-05,2]
[422712567,1779292240000,-1912.09,8.219e-05,2]
[422712568,1779292240000,-2726.46,8.219e-05,2]
[422712569,1779292240000,-500.0,8.219e-05,2]
[422712571,1779292240000,-6725.35,8.219e-05,2]
[422712564,1779292240000,-151.0,8.219e-05,2]
[422712570,1779292240000,-1643.59,8.219e-05,2]
[422712553,1779292240000,-500.0,8.219e-05,2]
[422712565,1779292240000,-151.0,8.219e-05,2]
[422712582,1779292240000,-1692.79,8.219e-05,2]
[422712585,1779292240000,-758.72,8.219e-05,2]
[422712584,1779292240000,-1473.2,8.219e-05,2]
[422712575,1779292240000,-151.0,8.219e-05,2]
[422712578,1779292240000,-151.0,8.219e-05,2]
[422712573,1779292240000,-500.0,8.219e-05,2]
[422712574,1779292240000,-151.0,8.219e-05,2]
[422712581,1779292240000,-500.0,8.219e-05,2]
[422712577,1779292240000,-779.83,8.219e-05,2]
[422712576,1779292240000,-202.696786,8.219e-05,2]
[422712579,1779292240000,-671.41,8.219e-05,2]
[422712580,1779292240000,-6120.39,8.219e-05,2]
[422712525,1779292240000,-151.0,8.219e-05,2]
[422712572,1779292240000,-932.01,8.219e-05,2]
[422712555,1779292240000,-859.54,8.219e-05,2]
[422712586,1779292240000,-516.5,8.219e-05,2]
[422712554,1779292240000,-500.0,8.219e-05,2]
[422712524,1779292240000,-151.0,8.219e-05,2]
[422712526,1779292240000,-151.0,8.219e-05,2]
[422712528,1779292240000,-1012.21,8.219e-05,2]
[422712527,1779292240000,-500.0,8.219e-05,2]
[422712529,1779292240000,-2276.64,8.219e-05,2]
[422712530,1779292240000,-157.37480002,8.219e-05,2]
[422712532,1779292240000,-6419.12,8.219e-05,2]
[422712542,1779292240000,-5323.43,8.219e-05,2]
[422712556,1779292240000,-644.65,8.219e-05,2]
[422712544,1779292240000,-500.0,8.219e-05,2]
[422712531,1779292240000,-161.21610624,8.219e-05,2]
[422712534,1779292240000,-654.8,8.219e-05,2]
[422712537,1779292240000,-500.0,8.219e-05,2]
[422712533,1779292240000,-2124.79,8.219e-05,2]
[422712543,1779292240000,-500.0,8.219e-05,2]
[422712538,1779292240000,-151.0,8.219e-05,2]
[422712535,1779292240000,-151.0,8.219e-05,2]
[422712551,1779292240000,-500.0,8.219e-05,2]
[422712552,1779292240000,-500.0,8.219e-05,2]
[422712550,1779292240000,-500.0,8.219e-05,2]
[422712557,1779292240000,-500.0,8.219e-05,2]
[422712548,1779292240000,-4370.33,8.219e-05,2]
[422712546,1779292240000,-500.0,8.219e-05,2]
[422712547,1779292240000,-218.64214456,8.219e-05,2]
[422712545,1779292240000,-500.0,8.219e-05,2]
[422712539,1779292240000,-1200.11,8.219e-05,2]
[422712536,1779292240000,-151.0,8.219e-05,2]
[422712540,1779292240000,-151.0,8.219e-05,2]
[422712541,1779292240000,-198.7747613,8.219e-05,2]
[422712549,1779292240000,-500.0,8.219e-05,2]
[422712632,1779292241000,-500.0,8.219e-05,2]
[422712628,1779292241000,-151.0,8.219e-05,2]
[422712635,1779292241000,-177.2636176,8.219e-05,2]
[422712625,1779292241000,-151.0,8.219e-05,2]
[422712626,1779292241000,-500.0,8.219e-05,2]
[422712619,1779292241000,-2774.65,8.219e-05,2]
[422712622,1779292241000,-875.01,8.219e-05,2]
[422712621,1779292241000,-151.0,8.219e-05,2]
[422712623,1779292241000,-151.0,8.219e-05,2]
[422712620,1779292241000,-500.0,8.219e-05,2]
[422712624,1779292241000,-151.0,8.219e-05,2]
[422712629,1779292241000,-151.0,8.219e-05,2]
[422712641,1779292241000,-192.685301,8.221e-05,2]
[422712627,1779292241000,-151.0,8.219e-05,2]
[422712637,1779292241000,-150.79548396,8.219e-05,2]
[422712636,1779292241000,-152.11058991,8.219e-05,2]
[422712630,1779292241000,-151.0,8.219e-05,2]
[422712634,1779292241000,-500.0,8.219e-05,2]
[422712633,1779292241000,-500.0,8.219e-05,2]
[422712638,1779292241000,-172.7058783,8.221e-05,2]
[422712640,1779292241000,-1088.6241829,8.221e-05,2]
[422712642,1779292241000,-300.0,8.279e-05,2]
[422712644,1779292241000,-300.0,8.279e-05,2]
[422712643,1779292241000,-300.0,8.279e-05,2]
[422712647,1779292241000,-300.0,8.279e-05,2]
[422712645,1779292241000,-300.0,8.279e-05,2]
[422712618,1779292241000,-541.96,8.219e-05,2]
[422712631,1779292241000,-500.0,8.219e-05,2]
[422712616,1779292241000,-151.0,8.219e-05,2]
[422712605,1779292241000,-1281.23,8.219e-05,2]
[422712615,1779292241000,-151.0,8.219e-05,2]
[422712639,1779292241000,-2970.2933689,8.221e-05,2]
[422712589,1779292241000,-969.8,8.219e-05,2]
[422712587,1779292241000,-379.37092337,8.219e-05,2]
[422712597,1779292241000,-500.0,8.219e-05,2]
[422712588,1779292241000,-1616.67,8.219e-05,2]
[422712598,1779292241000,-151.0,8.219e-05,2]
[422712594,1779292241000,-4916.24,8.219e-05,2]
[422712593,1779292241000,-423.02243639,8.219e-05,2]
[422712590,1779292241000,-500.0,8.219e-05,2]
[422712596,1779292241000,-500.0,8.219e-05,2]
[422712591,1779292241000,-1628.4,8.219e-05,2]
[422712595,1779292241000,-4701.43,8.219e-05,2]
[422712592,1779292241000,-2014.38,8.219e-05,2]
[422712600,1779292241000,-151.0,8.219e-05,2]
[422712610,1779292241000,-500.0,8.219e-05,2]
[422712601,1779292241000,-500.0,8.219e-05,2]
[422712607,1779292241000,-500.0,8.219e-05,2]
[422712599,1779292241000,-1838.69,8.219e-05,2]
[422712602,1779292241000,-151.0,8.219e-05,2]
[422712604,1779292241000,-2876.64,8.219e-05,2]
[422712606,1779292241000,-500.0,8.219e-05,2]
[422712609,1779292241000,-151.0,8.219e-05,2]
[422712608,1779292241000,-151.0,8.219e-05,2]
[422712611,1779292241000,-151.0,8.219e-05,2]
[422712614,1779292241000,-198.788604,8.219e-05,2]
[422712612,1779292241000,-151.0,8.219e-05,2]
[422712613,1779292241000,-151.0,8.219e-05,2]
[422712617,1779292241000,-151.0,8.219e-05,2]
[422712646,1779292241000,-300.0,8.279e-05,2]
[422712603,1779292241000,-151.0,8.219e-05,2]
[422712648,1779292241000,-300.0,8.279e-05,2]
[422712687,1779292241000,-500.0,8.493e-05,2]
[422712685,1779292241000,-500.0,8.493e-05,2]
[422712686,1779292241000,-500.0,8.493e-05,2]
[422712689,1779292241000,-500.0,8.493e-05,2]
[422712681,1779292241000,-500.0,8.493e-05,2]
[422712683,1779292241000,-500.0,8.493e-05,2]
[422712682,1779292241000,-500.0,8.493e-05,2]
[422712690,1779292241000,-500.0,8.493e-05,2]
[422712691,1779292241000,-310.18226094,8.493e-05,2]
[422712684,1779292241000,-500.0,8.493e-05,2]
[422712692,1779292241000,-535.14,8.493e-05,2]
[422712694,1779292241000,-500.0,8.493e-05,2]
[422712696,1779292241000,-500.0,8.493e-05,2]
[422712695,1779292241000,-1225.22,8.493e-05,2]
[422712699,1779292241000,-630.85,8.493e-05,2]
[422712698,1779292241000,-500.0,8.493e-05,2]
[422712701,1779292241000,-500.0,8.493e-05,2]
[422712693,1779292241000,-1142.64,8.493e-05,2]
[422712700,1779292241000,-500.0,8.493e-05,2]
[422712702,1779292241000,-284.15,8.493e-05,2]
[422712703,1779292241000,-500.0,8.493e-05,2]
[422712707,1779292241000,-500.0,8.493e-05,2]
[422712704,1779292241000,-830.73,8.493e-05,2]
[422712705,1779292241000,-500.0,8.493e-05,2]
[422712706,1779292241000,-429.17505993,8.493e-05,2]
[422712708,1779292241000,-500.0,8.493e-05,2]
[422712649,1779292241000,-300.0,8.279e-05,2]
[422712680,1779292241000,-500.0,8.493e-05,2]